fUST/lending_fUST_20251117
["ID","MTS","AMOUNT","RATE_DAILY","PERIOD"]
[394136042,1763314250146,-2135.46107,0.00020548,2]
[394136043,1763314250155,-1380.59201462,0.0002061,2]
[394136044,1763314250165,-909.57752347,0.00020713,2]
[394136045,1763314250175,-2232.82657875,0.00020744,2]
[394136046,1763314250184,-2149.0,0.00020786,2]
[394136047,1763314250192,-629.0,0.00020786,2]
[394136048,1763314250202,-988.0,0.00020786,2]
[394136049,1763314250211,-411.336,0.00020786,2]
[394136050,1763314250222,-413.0,0.00020786,2]
[394136051,1763314250234,-7765.91769143,0.00020885,2]
[394136052,1763314250243,-254.73246072,0.000209,2]
[394136053,1763314250252,-5000.0,0.00020901,2]
[394136054,1763314250261,-4933.63224955,0.00020955,2]
[394136055,1763314250270,-275.51130761,0.00021,2]
[394136056,1763314250280,-206.03594326,0.00021,2]
[394136057,1763314250290,-50000.0,0.00021,2]
[394136058,1763314250298,-360.0,0.00021003,2]
[394136059,1763314250310,-2232.82657875,0.00021048,2]
[394136060,1763314250319,-155.749109,0.0002119,2]
[394136061,1763314250327,-155.749109,0.00021218,9]
[394136062,1763314250337,-864.0,0.00021268,20]
[394136063,1763314250346,-2232.82657875,0.00021308,2]
[394136064,1763314250355,-374.3510914,0.00021398,2]
[394136065,1763314250365,-823.0,0.00021454,2]
[394136066,1763314250374,-12775.11415444,0.000215,2]
[394136067,1763314250383,-460.0,0.00021551,2]
[394136068,1763314250392,-1011.038337,0.0002158,2]
[394136069,1763314250401,-2232.82657885,0.00021595,2]
[394136070,1763314250410,-292.03927056,0.00021616,2]
[394136071,1763314250419,-155.749109,0.00021622,3]
[394136072,1763314250428,-500.0,0.00021733,2]
[394136073,1763314250438,-500.0,0.00021733,2]
[394136074,1763314250447,-500.0,0.00021733,2]
[394136075,1763314250456,-500.0,0.00021733,2]
[394136076,1763314250465,-500.0,0.00021733,2]
[394136077,1763314250474,-500.0,0.00021733,2]
[394136078,1763314250483,-500.0,0.00021733,2]
[394136079,1763314250492,-500.0,0.00021733,2]
[394136080,1763314250501,-500.0,0.00021733,2]
[394136081,1763314250511,-500.0,0.00021733,2]
[394136082,1763314250520,-500.0,0.00021733,2]
[394136083,1763314250529,-500.0,0.00021733,2]
[394136084,1763314250539,-500.0,0.00021733,2]
[394136085,1763314250548,-500.0,0.000218,2]
[394136086,1763314250559,-1126.73,0.00021917,2]
[394136087,1763314250568,-189.868035,0.00021918,2]
[394136088,1763314250578,-716.913194,0.00021918,2]
[394136089,1763314250587,-716.913194,0.00021918,2]
[394136090,1763314250597,-716.913194,0.00021918,2]
[394136091,1763314250606,-716.913194,0.00021918,2]
[394136092,1763314250616,-716.913194,0.00021918,2]
[394136093,1763314250625,-716.913194,0.00021918,2]
[394136094,1763314250634,-716.913194,0.00021918,2]
[394136095,1763314250643,-716.913194,0.00021918,2]
[394136096,1763314250652,-716.913194,0.00021918,2]
[394136097,1763314250661,-716.913194,0.00021918,2]
[394136098,1763314250671,-716.913194,0.00021918,2]
[394136099,1763314250680,-716.913194,0.00021918,2]
[394136100,1763314250689,-716.913194,0.00021918,2]
[394136101,1763314250699,-716.913194,0.00021918,2]
[394136102,1763314250709,-716.913194,0.00021918,2]
[394136103,1763314250786,-716.913194,0.00021918,2]
[394136104,1763314250798,-151.0,0.00021918,2]
[394136105,1763314250810,-151.0,0.00021918,2]
[394136106,1763314250821,-151.0,0.00021918,2]
[394136107,1763314250832,-202.19009506,0.00021918,2]
[394136108,1763314250842,-151.0,0.00021918,2]
[394136109,1763314250851,-151.0,0.00021918,2]
[394136110,1763314250861,-151.0,0.00021918,2]
[394136111,1763314250870,-151.0,0.00021918,2]
[394136112,1763314250879,-151.0,0.00021918,2]
[394136113,1763314250889,-151.0,0.00021918,2]
[394136114,1763314250899,-151.0,0.00021918,2]
[394136115,1763314250908,-151.0,0.00021918,2]
[394136116,1763314250918,-151.0,0.00021918,2]
[394136117,1763314250927,-151.0,0.00021918,2]
[394136118,1763314250936,-151.0,0.00021918,2]
[394136119,1763314250946,-151.0,0.00021918,2]
[394136120,1763314250955,-151.0,0.00021918,2]
[394136121,1763314250965,-151.0,0.00021918,2]
[394136122,1763314250974,-151.0,0.00021918,2]
[394136123,1763314250984,-151.0,0.00021918,2]
[394136124,1763314250993,-151.0,0.00021918,2]
[394136125,1763314251003,-151.0,0.00021918,2]
[394136126,1763314251012,-151.0,0.00021918,2]
[394136127,1763314251022,-151.0,0.00021918,2]
[394136128,1763314251031,-151.0,0.00021918,2]
[394136129,1763314251040,-151.0,0.00021918,2]
[394136130,1763314251049,-151.0,0.00021918,2]
[394136131,1763314251060,-150.0,0.00021918,2]
[394136132,1763314251070,-151.0,0.00021918,2]
[394136133,1763314251079,-151.0,0.00021918,2]
[394136134,1763314251088,-151.0,0.00021918,2]
[394136135,1763314251097,-151.0,0.00021918,2]
[394136136,1763314251106,-151.0,0.00021918,2]
[394136137,1763314251115,-273.16666592,0.00021918,2]
[394136138,1763314251124,-155.749109,0.0002197,10]
[394136139,1763314251133,-2661.0,0.00021999,2]
[394136140,1763314251142,-5000.0,0.00022,2]
[394136141,1763314251152,-7099.95318117,0.00022,5]
[394136142,1763314251160,-359.68152812,0.00022,2]
[394136143,1763314251170,-1946.18,0.00022,14]
[394136144,1763314251179,-16504.72,0.00022,7]
[394136145,1763314251187,-636.79,0.00022,7]
[394136146,1763314251196,-242.577307,0.00022,7]
[394136147,1763314251205,-716.913194,0.00022,2]
[394136148,1763314251214,-343.97038,0.00022,7]
[394136149,1763314251224,-716.913194,0.00022,2]
[394136150,1763314251233,-343.97038,0.00022,7]
[394136151,1763314251242,-716.913194,0.00022,2]
[394136152,1763314251251,-343.97038,0.00022,7]
[394136153,1763314251260,-716.913195,0.00022,2]
[394136154,1763314251272,-220.479725,0.00022,7]
[394136155,1763314251281,-343.970376,0.00022,7]
[394136156,1763314251290,-220.479725,0.00022,7]
[394136157,1763314251299,-220.479725,0.00022,7]
[394136158,1763314251308,-220.479725,0.00022,7]
[394136159,1763314251318,-393.242907,0.00022,7]
[394136160,1763314251327,-393.242907,0.00022,7]
[394136161,1763314251337,-393.242907,0.00022,7]
[394136162,1763314251346,-393.242901,0.00022,7]
[394136163,1763314251356,-151.0,0.00022,7]
[394136164,1763314251365,-151.0,0.00022,7]
[394136165,1763314251376,-151.0,0.00022,7]
[394136166,1763314251385,-151.0,0.00022,7]
[394136167,1763314251394,-151.0,0.00022,7]
[394136168,1763314251403,-151.0,0.00022,7]
[394136169,1763314251413,-152.602846,0.00022,7]
[394136170,1763314251422,-151.0,0.00022,7]
[394136171,1763314251432,-151.0,0.00022,7]
[394136172,1763314251441,-151.0,0.00022,7]
[394136173,1763314251450,-151.0,0.00022,7]
[394136174,1763314251460,-1127.065351,0.00022,7]
[394136175,1763314251469,-151.0,0.00022,7]
[394136176,1763314251478,-151.0,0.00022,7]
[394136177,1763314251487,-1127.065351,0.00022,7]
[394136178,1763314251497,-151.0,0.00022,7]
[394136179,1763314251506,-151.0,0.00022,7]
[394136180,1763314251515,-1127.065351,0.00022,7]
[394136181,1763314251526,-151.0,0.00022,7]
[394136182,1763314251536,-151.0,0.00022,7]
[394136183,1763314251545,-162.714787,0.00022,7]
[394136184,1763314251557,-1127.065351,0.00022,7]
[394136185,1763314251568,-151.0,0.00022,7]
[394136186,1763314251577,-151.0,0.00022,7]
[394136187,1763314251586,-151.0,0.00022,7]
[394136188,1763314251595,-151.0,0.00022,7]
[394136189,1763314251604,-151.0,0.00022,7]
[394136190,1763314251614,-151.0,0.00022,7]
[394136191,1763314251623,-237.628944,0.00022,7]
[394136192,1763314251632,-151.0,0.00022,7]
[394136193,1763314251641,-237.628944,0.00022,7]
[394136194,1763314251650,-151.0,0.00022,7]
[394136195,1763314251660,-237.628944,0.00022,7]
[394136196,1763314251669,-187.766685,0.00022,7]
[394136197,1763314251679,-151.0,0.00022,7]
[394136198,1763314251687,-237.628944,0.00022,7]
[394136199,1763314251697,-155.218955,0.00022,7]
[394136200,1763314251706,-560.0,0.00022098,2]
[394136201,1763314251715,-500.0,0.00022281,2]
[394136202,1763314251724,-231.54804744,0.00022281,2]
[394136203,1763314251735,-500.0,0.00022281,2]
[394136204,1763314251746,-507.79347609,0.00022281,2]
[394136205,1763314251755,-500.0,0.00022281,2]
[394136206,1763314251765,-370.03516788,0.00022281,2]
[394136207,1763314251775,-1000.0,0.00022281,2]
[394136208,1763314251785,-500.0,0.00022281,2]
[394136209,1763314251795,-1000.0,0.00022281,2]
[394136210,1763314251804,-1000.0,0.00022281,2]
[394136211,1763314251813,-500.0,0.00022281,2]
[394136212,1763314251823,-1006.05025343,0.00022281,2]
[394136213,1763314251833,-1001.28298723,0.00022281,2]
[394136214,1763314251843,-1000.0,0.00022348,2]
[394136215,1763314251852,-155.749109,0.0002241,9]
[394136216,1763314251862,-300.0,0.00022466,2]
[394136217,1763314251871,-660.0,0.00022646,2]
[394136218,1763314251881,-1000.0,0.000228,7]
[394136219,1763314251891,-1031.6786492,0.00022829,2]
[394136220,1763314251901,-1500.0,0.00022829,2]
[394136221,1763314251912,-1500.0,0.00022896,2]
[394136222,1763314251921,-155.749109,0.0002291,10]
[394136223,1763314251931,-155.749109,0.0002295,3]
[394136224,1763314251940,-5354.67208013,0.00023,2]
[394136225,1763314251951,-1126.73,0.00023013,2]
[394136226,1763314251960,-500.0,0.00023014,2]
[394136227,1763314251970,-450.0,0.00023014,2]
[394136228,1763314251979,-760.0,0.00023194,2]
[394136229,1763314251989,-2000.0,0.00023377,2]
[394136230,1763314251998,-1000.0,0.00023395,20]
[394136231,1763314252008,-413.5273684,0.00023398,2]
[394136232,1763314252017,-2000.0,0.00023444,2]
[394136233,1763314252027,-1152.0,0.00023446,2]
[394136234,1763314252036,-2000.0,0.00023497,7]
[394136235,1763314252046,-1000.0,0.000235,2]
[394136236,1763314252057,-1000.0,0.000235,2]
[394136237,1763314252066,-1000.0,0.000235,2]
[394136238,1763314252075,-1000.0,0.000235,2]
[394136239,1763314252085,-1000.0,0.000235,2]
[394136240,1763314252095,-1011.038337,0.00023516,2]
[394136241,1763314252104,-160.173842,0.00023544,2]
[394136242,1763314252114,-600.0,0.00023562,2]
[394136243,1763314252123,-1946.18,0.000237,14]
[394136244,1763314252133,-16504.72,0.000237,7]
[394136245,1763314252142,-636.79,0.000237,7]
[394136246,1763314252151,-7765.91769143,0.00023704,2]
[394136247,1763314252160,-860.0,0.00023742,2]
[394136248,1763314252170,-2149.0,0.00023786,2]
[394136249,1763314252179,-629.0,0.00023786,2]
[394136250,1763314252188,-988.0,0.00023786,2]
[394136251,1763314252197,-413.0,0.00023786,2]
[394136252,1763314252206,-6446.0,0.000238,2]
[394136253,1763314252215,-155.749109,0.0002385,10]
[394136254,1763314252287,-2500.0,0.00023925,2]
[394136255,1763314252296,-2426.53760545,0.00023992,2]
[394136256,1763314252306,-1496.0,0.00024,2]
[394136257,1763314252315,-2000.0,0.00024,7]
[394136258,1763314252325,-1000.0,0.00024,24]
[394136259,1763314252334,-1726.24628978,0.00024,2]
[394136260,1763314252344,-463.03111694,0.00024,2]
[394136261,1763314252353,-1126.73,0.00024109,2]
[394136262,1763314252363,-750.0,0.0002411,2]
[394136263,1763314252373,-16324.93924024,0.00024142,2]
[394136264,1763314252386,-35142.23895575,0.00024142,2]
[394136265,1763314252870,-17299.188536,0.00024142,2]
[394136266,1763314252881,-305.00000001,0.00024142,2]
[394136278,1763314347207,169.8126152,9.581e-05,2]
[394136289,1763314798948,1033.0,0.00038107,20]
[394136294,1763314990609,152.0,0.00019,30]
[394136298,1763315233118,-300.0,0.00015987,2]
[394136299,1763315233137,-2558.21798823,0.00015988,2]
[394136300,1763315233157,-2244.34135331,0.00015988,2]
[394136307,1763315411499,194.16191285,0.00018,10]
[394136308,1763315430822,1000.0,0.00032,120]
[394136344,1763315431707,-183.7384027,0.00016186,2]
[394136345,1763315431717,-279.86343259,0.00016284,2]
[394136346,1763315431761,-20.13656741,0.00016284,2]
[394136347,1763315431770,-1200.0,0.00016284,2]
[394136348,1763315431779,-300.0,0.00016284,2]
[394136349,1763315431788,-300.0,0.00016285,2]
[394136350,1763315431798,-300.0,0.00016285,2]
[394136351,1763315431810,-1200.0,0.00016288,2]
[394136352,1763315431819,-988.0,0.00016289,2]
[394136353,1763315431828,-629.0,0.00016289,2]
[394136354,1763315431837,-2149.0,0.00016289,2]
[394136355,1763315431847,-413.0,0.00016289,2]
[394136356,1763315431856,-207.796352,0.00016716,2]
[394136357,1763315431865,-335.35906938,0.00016767,2]
[394136358,1763315431874,-500.0,0.00016767,2]
[394136359,1763315431884,-533.54331122,0.00016767,2]
[394136360,1763315431893,-500.0,0.0001698,2]
[394136361,1763315431902,-500.0,0.0001698,2]
[394136362,1763315431912,-160.0,0.00017679,2]
[394136363,1763315431921,-160.0,0.00017679,2]
[394136364,1763315431931,-400.59295362,0.00017679,2]
[394136365,1763315431940,-303.0,0.00017799,2]
[394136366,1763315431949,-300.0,0.00017799,2]
[394136367,1763315431958,-300.0,0.000178,2]
[394136368,1763315431968,-420.0,0.000178,2]
[394136369,1763315431977,-645.0,0.00017888,2]
[394136370,1763315431986,-216.81131519,0.00018186,2]
[394136371,1763315431995,-220.14972116,0.00018212,2]
[394136372,1763315432004,-607.51253803,0.00018616,2]
[394136373,1763315432013,-1693.51835437,0.00018886,2]
[394136385,1763315437707,-3032.1278861,0.00018789,2]
[394136432,1763315439776,-880.05237482,0.00018789,2]
[394136466,1763315471087,1000.0,0.00038107,20]
[394136467,1763315487119,1000.0,0.00038107,20]
[394136468,1763315487811,1000.0,0.00038107,20]
[394136469,1763315488293,1000.0,0.00038107,20]
[394136470,1763315488706,1000.0,0.00038107,20]
[394136471,1763315489182,1000.0,0.00038107,20]
[394136472,1763315489581,1000.0,0.00038107,20]
[394136473,1763315490173,1000.0,0.00038107,20]
[394136474,1763315490813,1000.0,0.00038107,20]
[394136475,1763315491991,1000.0,0.00038107,20]
[394136476,1763315492965,1000.0,0.00038107,20]
[394136477,1763315493444,1000.0,0.00038107,20]
[394136478,1763315494999,1000.0,0.00038107,20]
[394136479,1763315520059,2003.51679999,0.00038107,30]
[394136480,1763315721446,905.392276,0.00013699,2]
[394136537,1763316273615,-300.0,0.00015867,2]
[394136538,1763316273638,-170.51093241,0.00016027,2]
[394136539,1763316273660,-170.51093238,0.00016081,2]
[394136540,1763316273684,-182.88845325,0.00016127,2]
[394136541,1763316273706,-170.51093238,0.00016134,2]
[394136542,1763316273728,-170.51093238,0.00016188,2]
[394136543,1763316273751,-300.0,0.00016288,2]
[394136544,1763316273774,-629.0,0.00016289,2]
[394136545,1763316273797,-988.0,0.00016289,2]
[394136546,1763316273819,-2149.0,0.00016289,2]
[394136547,1763316273842,-420.0,0.00017802,2]
[394136548,1763316273865,-168.69136,0.00018032,2]
[394136549,1763316273890,-215.80837484,0.00018127,2]
[394136550,1763316273913,-1648.71565228,0.00018442,2]
[394136551,1763316273936,-400.59295362,0.00018783,2]
[394136552,1763316273960,-1200.0,0.00018788,2]
[394136553,1763316273985,-6052.53407741,0.00018789,2]
[394136554,1763316274010,-300.0,0.00018884,2]
[394136555,1763316274034,-300.0,0.00018885,2]
[394136556,1763316274058,-300.0,0.00018885,2]
[394136557,1763316274080,-500.0,0.00018886,2]
[394136558,1763316274102,-151.0,0.00018889,2]
[394136559,1763316274125,-500.0,0.00018889,2]
[394136560,1763316274148,-256.33099611,0.00018889,2]
[394136561,1763316274174,-334.53002744,0.00018889,2]
[394136562,1763316274199,-500.0,0.00018889,2]
[394136563,1763316274222,-500.0,0.00018889,2]
[394136564,1763316274245,-500.0,0.00018889,2]
[394136565,1763316274270,-500.0,0.00018889,2]
[394136566,1763316274297,-96651.46237862,0.0001889,2]
[394136568,1763316274391,500.0,0.00018883,2]
[394136569,1763316274429,500.0,0.00018883,2]
[394136570,1763316274466,500.0,0.00018883,2]
[394136571,1763316274495,500.0,0.00018883,2]
[394136572,1763316274524,500.0,0.00018883,2]
[394136573,1763316274552,152.53982646,0.00018883,2]
[394136574,1763316274579,373.37958585,0.00018883,2]
[394136575,1763316274612,500.0,0.00018883,2]
[394136576,1763316274641,500.0,0.00018883,2]
[394136577,1763316274686,500.0,0.00018883,2]
[394136578,1763316274729,500.0,0.00018883,2]
[394136579,1763316274759,512.00795799,0.00018883,2]
[394136580,1763316274792,468.29865671,0.00018883,2]
[394136581,1763316274830,500.0,0.00018883,2]
[394136582,1763316274859,500.0,0.00018883,2]
[394136583,1763316274892,500.0,0.00018883,2]
[394136584,1763316274938,500.0,0.00018883,2]
[394136585,1763316274970,500.0,0.00018883,2]
[394136586,1763316275000,500.0,0.00018883,2]
[394136587,1763316275029,500.0,0.00018883,2]
[394136588,1763316275061,500.0,0.00018883,2]
[394136589,1763316275093,500.0,0.00018883,2]
[394136590,1763316275121,500.0,0.00018883,2]
[394136591,1763316275152,500.0,0.00018883,2]
[394136592,1763316275181,500.0,0.00018883,2]
[394136593,1763316275210,500.0,0.00018883,2]
[394136594,1763316275247,457.25593239,0.00018883,2]
[394136595,1763316275276,500.0,0.00018883,2]
[394136596,1763316275304,500.0,0.00018883,2]
[394136597,1763316275431,500.0,0.00018883,2]
[394136598,1763316275463,500.0,0.00018883,2]
[394136599,1763316275493,500.0,0.00018883,2]
[394136600,1763316275523,500.0,0.00018883,2]
[394136601,1763316275552,500.0,0.00018883,2]
[394136602,1763316275594,500.0,0.00018883,2]
[394136603,1763316275624,500.0,0.00018883,2]
[394136604,1763316275652,500.0,0.00018883,2]
[394136605,1763316275681,500.0,0.00018883,2]
[394136606,1763316275712,500.0,0.00018883,2]
[394136607,1763316275742,500.0,0.00018883,2]
[394136608,1763316275770,500.0,0.00018883,2]
[394136609,1763316275806,184.09623855,0.00018883,2]
[394136610,1763316275835,500.0,0.00018883,2]
[394136611,1763316276988,500.0,0.00018883,2]
[394136619,1763316295017,486.15580428,0.00018431,2]
[394136622,1763316297769,1625.51090568,0.00018977,2]
[394136626,1763316341123,-151.0,0.00019026,2]
[394136627,1763316341143,-300.0,0.00019076,2]
[394136628,1763316341164,-300.0,0.00019076,2]
[394136629,1763316341185,-398.0,0.00019076,2]
[394136630,1763316341207,-1000.0,0.00019077,2]
[394136631,1763316341227,-1000.0,0.00019077,2]
[394136632,1763316341246,-1000.0,0.00019077,2]
[394136633,1763316341267,-1000.0,0.00019077,2]
[394136634,1763316341287,-1000.0,0.00019077,2]
[394136635,1763316341306,-1000.0,0.00019077,2]
[394136636,1763316341325,-1000.0,0.00019077,2]
[394136637,1763316341345,-1000.0,0.00019077,2]
[394136638,1763316341365,-1000.0,0.00019077,2]
[394136639,1763316341389,-1000.0,0.00019077,2]
[394136640,1763316341410,-1000.0,0.00019077,2]
[394136641,1763316341430,-1000.0,0.00019077,2]
[394136642,1763316341451,-686.28478833,0.00019077,2]
[394136643,1763316341472,-151.0,0.00019163,2]
[394136644,1763316341491,-629.0,0.00019289,2]
[394136645,1763316341512,-988.0,0.00019289,2]
[394136646,1763316341531,-2149.0,0.00019289,2]
[394136647,1763316341551,-151.0,0.000193,2]
[394136648,1763316341570,-206.54803364,0.00019437,2]
[394136649,1763316341592,-155.749109,0.00019859,2]
[394136650,1763316341613,-248.72829643,0.00020127,2]
[394136651,1763316341634,-905.392276,0.00020187,2]
[394136652,1763316341655,-155.749109,0.00020196,3]
[394136653,1763316341676,-208.02,0.00020543,2]
[394136654,1763316341696,-6214.4424842,0.00020643,2]
[394136655,1763316341716,-420.0,0.00020791,2]
[394136656,1763316341738,-155.749109,0.0002112,7]
[394136657,1763316341759,-486.15580428,0.00021155,2]
[394136658,1763316341779,-985.89,0.00021917,2]
[394136659,1763316341799,-281.64821801,0.00022127,2]
[394136660,1763316341818,-250.0,0.00022206,2]
[394136661,1763316341837,-629.0,0.00022289,2]
[394136662,1763316341856,-2149.0,0.00022289,2]
[394136663,1763316341875,-160.0,0.000223,2]
[394136664,1763316341895,-231.05175512,0.00022829,2]
[394136665,1763316341913,-415.89315921,0.00022829,2]
[394136666,1763316341933,-739.36561637,0.00022829,2]
[394136667,1763316341953,-1155.25877558,0.00022829,2]
[394136668,1763316341973,-260.0,0.00022848,2]
[394136669,1763316341992,-985.89,0.00023013,2]
[394136670,1763316342015,-231.8703132,0.00023014,2]
[394136671,1763316342039,-360.0,0.00023396,2]
[394136672,1763316342060,-6214.4424842,0.00023488,2]
[394136673,1763316342079,-486.15580428,0.00023878,2]
[394136674,1763316342100,-460.0,0.00023944,2]
[394136675,1763316342119,-14530.61871936,0.0002399,2]
[394136676,1763316342138,-160.173842,0.00024,7]
[394136677,1763316342156,-985.89,0.00024109,2]
[394136678,1763316342177,-314.5681396,0.00024127,2]
[394136679,1763316342199,-6618.47,0.00024132,10]
[394136680,1763316342219,-400.59295362,0.00024132,10]
[394136681,1763316342243,-7870.29,0.00024132,10]
[394136682,1763316342272,-10021.5,0.00024132,10]
[394136683,1763316342295,-59907.99551303,0.00024142,2]
[394136684,1763316342317,-23449.82863154,0.00024142,2]
[394136688,1763316435088,-413.0,0.00017271,2]
[394136689,1763316435113,-300.0,0.00018784,2]
[394136690,1763316435142,-140125.485193,0.00018785,2]
[394136691,1763316436154,-22992.729201,0.00018785,2]
[394136692,1763316444243,-726881.785606,0.00018785,2]
[394136694,1763316449166,-283.0,0.00019359,2]
[394136695,1763316449187,-5295.96731776,0.00019759,2]
[394136696,1763316449209,-155.749109,0.00019859,2]
[394136697,1763316449229,-155.749109,0.00020196,3]
[394136698,1763316449248,-413.0,0.00020271,2]
[394136699,1763316449268,-420.0,0.00020479,2]
[394136700,1763316449290,-206.3991297,0.00021051,2]
[394136701,1763316449309,-400.59295362,0.00021051,2]
[394136702,1763316449328,-473.0,0.00022,2]
[394136703,1763316449350,-473.0,0.00022192,7]
[394136704,1763316449369,-587.0,0.00022327,2]
[394136705,1763316449388,-250.0,0.00022447,10]
[394136706,1763316449411,-473.0,0.00023014,7]
[394136707,1763316449431,-237.8837427,0.00023051,2]
[394136708,1763316449451,-413.0,0.00023271,2]
[394136709,1763316449472,-500.0,0.00023989,2]
[394136710,1763316449497,-384.13954804,0.00023989,2]
[394136711,1763316449517,-163.14429519,0.00023989,2]
[394136712,1763316449538,-500.0,0.00023989,2]
[394136713,1763316449560,-218.40962385,0.00023989,2]
[394136714,1763316449581,-500.0,0.00023989,2]
[394136715,1763316449604,-14530.61871936,0.0002399,2]
[394136716,1763316449623,-1058.80609025,0.00024021,12]
[394136717,1763316449644,-500.0,0.00024141,2]
[394136718,1763316449664,-179.43169728,0.00024141,2]
[394136719,1763316449683,-500.0,0.00024141,2]
[394136720,1763316449703,-500.0,0.00024141,2]
[394136721,1763316449722,-484.17101921,0.00024141,2]
[394136722,1763316449741,-44342.08802216,0.00024142,2]
[394136724,1763316451082,-7476.42,0.00024132,10]
[394136725,1763316451103,-63684.05738258,0.00024142,2]
[394136726,1763316451123,-27229.49776642,0.00024142,2]
[394136737,1763316542434,150.0,0.00031999,120]
[394136821,1763316631979,-180.43141916,0.00018904,2]
[394136822,1763316631993,-917.0,0.00018904,2]
[394136823,1763316632002,-324.77655449,0.00020653,2]
[394136824,1763316632011,-577.38054132,0.00021527,2]
[394136825,1763316632021,-400.59295362,0.00021527,2]
[394136826,1763316632031,-295.0,0.00022,2]
[394136827,1763316632041,-295.0,0.00022192,7]
[394136828,1763316632051,-902.15709581,0.00022402,2]
[394136829,1763316632060,-295.0,0.00023014,7]
[394136830,1763316632069,-304.57713804,0.0002349,7]
[394136833,1763316632111,-393.06493254,0.0002349,7]
[394136836,1763316632121,-324.4820267,0.00023751,2]
[394136837,1763316632131,-190.93440265,0.00024131,2]
[394136839,1763316632140,-300.0,0.00024131,2]
[394136841,1763316632150,-300.0,0.00024131,2]
[394136843,1763316632159,-398.0,0.00024131,2]
[394136845,1763316632168,-400.59295362,0.00024132,10]
[394136847,1763316632177,-4591.04,0.00024132,10]
[394136848,1763316632187,-4034.10514549,0.00024132,10]
[394136885,1763316638483,-4720.69485451,0.00024132,10]
[394136886,1763316638494,-7295.66,0.00024132,10]
[394136887,1763316638604,-77526.26411364,0.00024142,2]
[394136888,1763316638676,-303.72545632,0.00024142,2]
[394136889,1763316638688,-683.22434254,0.00024142,2]
[394136890,1763316638958,-8288.68337524,0.00024142,2]
[394136891,1763316638970,-1920.24,0.00024142,2]
[394136892,1763316638983,-296.26393716,0.00024142,2]
[394136894,1763316639908,-4665.34978861,0.00024132,10]
[394136895,1763316639919,-1445.52021139,0.00024132,10]
[394136896,1763316639929,-51.65185115,0.00024142,2]
[394136897,1763316639958,-804.7719191,0.00024142,2]
[394136898,1763316639999,-15648.720577,0.00024142,2]
[394137055,1763316643174,-11818.43676822,0.00024142,2]
[394137057,1763316643183,-302.0,0.00024164,7]
[394137058,1763316643193,-500.0,0.00024173,2]
[394137059,1763316643202,-509.43,0.000242,7]
[394137060,1763316643211,-1689.73,0.000242,14]
[394137061,1763316643221,-13203.78,0.000242,7]
[394137062,1763316643230,-400.59295362,0.000242,7]
[394137063,1763316643240,-226.2937833,0.00024416,30]
[394137064,1763316643250,-1121.0,0.000245,5]
[394137065,1763316643259,-600.0,0.00024624,20]
[394137067,1763316643269,-511.67389307,0.0002465,2]
[394137069,1763316643278,-15420.86487959,0.0002465,2]
[394137071,1763316643289,-5396.0609,0.0002465,2]
[394137076,1763316643328,-92526.46800543,0.0002465,2]
[394137147,1763316644281,-24214.99024644,0.0002465,2]